bitfinex/quotes_SOLUSD_20251224
["timestamp","ask_amount","ask_price","bid_price","bid_amount"]
[1766542739706,8.0,122.74,122.72,11.13627293]
[1766542740400,8.0,122.74,122.73,2.29766978]
[1766542740598,0.75,122.75,122.72,23.71860315]
[1766542740599,11.18767296,122.75,122.72,23.71860315]
[1766542740807,11.18767296,122.75,122.73,2.29766978]
[1766542741102,11.18767296,122.75,122.72,17.86766978]
[1766542741880,10.53767296,122.75,122.72,17.17766978]
[1766542742085,0.65,122.74,122.71,23.71903039]
[1766542742289,0.65,122.74,122.72,2.29766978]
[1766542744502,0.65,122.72,122.67,2.98766978]
[1766542744702,0.65,122.7,122.67,2.98766978]
[1766542748009,0.65,122.7,122.67,2.29766978]
[1766542748908,0.65,122.7,122.67,2.95766978]
[1766542749712,0.65,122.7,122.67,0.66]
[1766542749915,0.65,122.7,122.67,2.95766978]
[1766542751915,0.65,122.7,122.67,11.10958824]
[1766542752614,0.65,122.7,122.67,2.95766978]
[1766542754713,0.65,122.7,122.67,11.10958495]
[1766542756296,0.65,122.7,122.68,2.95766978]
[1766542757914,0.65,122.7,122.67,8.81191517]
[1766542758103,0.65,122.7,122.67,11.10958495]
[1766542758415,0.65,122.7,122.67,2.95766978]
[1766542759199,0.65,122.7,122.67,11.10954803]
[1766542759816,2.29766978,122.73,122.68,2.95766978]
[1766542760019,0.72,122.74,122.71,2.95766978]
[1766542760322,0.1,122.75,122.72,0.66]
[1766542760323,0.82,122.75,122.72,0.66]
[1766542760506,0.82,122.75,122.73,2.29766978]
[1766542760706,0.82,122.75,122.72,2.95766978]
[1766542763299,0.82,122.75,122.7,8.80976932]
[1766542763300,18.68435628,122.75,122.7,8.80976932]
[1766542763602,0.72,122.74,122.71,17.17766978]
[1766542763810,0.72,122.74,122.71,17.83766978]
[1766542764827,0.72,122.74,122.72,2.29766978]
[1766542765124,11.25767296,122.75,122.72,2.95766978]
[1766542766622,11.25767296,122.75,122.72,0.66]
[1766542766920,11.25767296,122.75,122.72,2.95766978]
[1766542767310,11.25767296,122.75,122.73,2.29766978]
[1766542768032,11.25767296,122.75,122.73,1.46922692]
[1766542769616,11.25767296,122.75,122.72,2.12922692]
[1766542769931,11.25767296,122.75,122.73,1.46922692]
[1766542770124,10.53767296,122.75,122.73,1.46922692]
[1766542770324,0.1,122.75,122.73,2.12922692]
[1766542770824,0.1,122.75,122.73,1.46922692]
[1766542771026,0.82,122.75,122.73,1.46922692]
[1766542771926,0.82,122.75,122.72,8.80858129]
[1766542772118,11.25767296,122.75,122.72,2.12922692]
[1766542774833,18.68459113,122.75,122.72,1.46922692]
[1766542775016,0.72,122.74,122.72,1.46922692]
[1766542775229,0.72,122.74,122.71,17.00922692]
[1766542777012,0.72,122.74,122.72,1.46922692]
[1766542778753,0.72,122.74,122.72,0.96922692]
[1766542779243,0.79,122.75,122.73,1.46922692]
[1766542780138,0.77,122.75,122.73,1.46922692]
[1766542781137,0.77,122.75,122.72,2.14922692]
[1766542781835,0.77,122.75,122.73,1.46922692]
[1766542782436,0.77,122.75,122.72,2.14922692]
[1766542783337,0.77,122.75,122.72,0.68]
[1766542783547,0.77,122.75,122.72,2.14922692]
[1766542785536,8.91692083,122.75,122.72,2.14922692]
[1766542785736,0.67,122.74,122.72,1.46922692]
[1766542785938,0.67,122.74,122.72,2.14922692]
[1766542786125,0.77,122.75,122.72,2.14922692]
[1766542790251,0.1,122.75,122.73,2.14922692]
[1766542791853,0.1,122.75,122.73,0.68]
[1766542792025,0.1,122.75,122.73,2.14922692]
[1766542798151,0.1,122.75,122.73,0.68]
[1766542798942,0.67,122.74,122.69,0.68]
[1766542799142,0.67,122.74,122.71,0.68]
[1766542799349,0.67,122.74,122.7,17.02922692]
[1766542799953,0.67,122.74,122.7,25.17911831]
[1766542800657,0.67,122.73,122.7,17.02922692]
[1766542800833,0.67,122.73,122.71,2.14922692]
[1766542801156,8.24685327,122.75,122.72,0.68]
[1766542801536,0.67,122.74,122.72,0.68]
[1766542801737,8.91664017,122.75,122.72,2.14922692]
[1766542802357,0.77,122.75,122.72,0.68]
[1766542802556,0.77,122.75,122.72,2.14922692]
[1766542802736,0.77,122.75,122.73,0.68]
[1766542802931,0.77,122.75,122.72,9.61785402]
[1766542803237,0.1,122.75,122.73,2.14922692]
[1766542803439,0.1,122.75,122.73,0.68]
[1766542806247,0.1,122.75,122.73,2.14922692]
[1766542806446,0.1,122.75,122.73,0.68]
[1766542807568,0.1,122.75,122.73,2.14922692]
[1766542809067,0.8,122.75,122.73,2.14922692]
[1766542809252,0.8,122.75,122.73,1.46922692]
[1766542809848,0.1,122.75,122.73,2.16922692]
[1766542810358,0.1,122.76,122.74,2.10922692]
[1766542810667,0.1,122.77,122.76,0.64]
[1766542810868,0.1,122.77,122.76,2.10922692]
[1766542812353,0.1,122.78,122.76,2.10922692]
[1766542812556,0.1,122.78,122.77,1.46922692]
[1766542814138,0.8,122.79,122.77,1.46922692]
[1766542816156,0.7,122.82,122.78,2.10922692]
[1766542816470,0.8,122.83,122.81,1.46922692]
[1766542820569,0.8,122.83,122.8,0.64]
[1766542820766,0.7,122.82,122.8,1.46922692]
[1766542823769,0.1,122.83,122.8,1.46922692]
[1766542823954,0.8,122.83,122.81,1.46922692]
[1766542825461,0.8,122.83,122.8,2.10922692]
[1766542826076,0.8,122.83,122.79,23.66371911]
[1766542826277,0.7,122.82,122.79,8.14371911]
[1766542826582,0.7,122.82,122.79,1.46922692]
[1766542827072,0.7,122.82,122.79,9.6131878]
[1766542827656,0.7,122.82,122.79,8.14396088]
[1766542827855,0.7,122.82,122.78,23.66436965]
[1766542828056,0.7,122.81,122.77,2.29364694]
[1766542828256,0.7,122.8,122.76,23.6655904]
[1766542828471,0.7,122.8,122.77,2.29364694]
[1766542828670,0.7,122.8,122.77,2.93364694]
[1766542829276,0.7,122.8,122.77,11.07891069]
[1766542829579,0.7,122.8,122.77,2.29364694]
[1766542829757,0.7,122.8,122.76,25.95956375]
[1766542831269,0.7,122.8,122.76,15.52]
[1766542831476,0.7,122.79,122.75,11.08001865]
[1766542831867,0.7,122.79,122.76,2.29364694]
[1766542833980,0.7,122.79,122.75,11.08001865]
[1766542834691,0.7,122.79,122.74,35.24752794]
[1766542834692,0.67,122.77,122.74,2.29364694]
[1766542835402,0.67,122.77,122.75,2.29364694]
[1766542838475,19.2924513,122.78,122.75,2.29364694]
[1766542839098,8.0,122.77,122.75,2.29364694]
[1766542839271,8.71,122.77,122.74,0.64]
[1766542839476,0.71,122.75,122.71,10.44267176]
[1766542839783,0.71,122.75,122.71,8.78902482]
[1766542839982,0.71,122.75,122.72,2.29364694]
[1766542840995,0.71,122.75,122.72,2.93364694]
[1766542841791,0.71,122.75,122.72,2.29364694]
[1766542842500,0.71,122.75,122.72,2.93364694]
[1766542842989,0.71,122.75,122.73,2.29364694]
[1766542843194,0.71,122.75,122.72,0.64]
[1766542843402,0.71,122.75,122.73,2.29364694]
[1766542844495,0.71,122.75,122.72,0.64]
[1766542844694,0.71,122.75,122.73,2.29364694]
[1766542845100,0.71,122.75,122.72,2.93364694]
[1766542845291,0.71,122.75,122.72,2.29364694]
[1766542845692,0.71,122.74,122.72,2.29364694]
[1766542849200,2.29364694,122.76,122.72,10.44212014]
[1766542849397,20.87621031,122.78,122.73,2.29364694]
[1766542849604,20.87621031,122.78,122.73,2.97364694]
[1766542849781,35.75621031,122.78,122.73,2.97364694]
[1766542850801,33.46256337,122.78,122.73,2.97364694]
[1766542850995,35.75621031,122.78,122.73,2.97364694]
[1766542851192,0.71,122.77,122.73,11.12152758]
[1766542851401,0.71,122.77,122.74,2.29364694]
[1766542852287,0.71,122.77,122.74,2.97364694]
[1766542852608,0.71,122.77,122.74,2.29364694]
[1766542852900,0.71,122.76,122.74,2.29364694]
[1766542855508,0.71,122.76,122.73,0.68]
[1766542855806,0.71,122.76,122.74,2.29364694]
[1766542856004,0.71,122.76,122.74,2.97364694]
[1766542856184,0.71,122.77,122.74,2.97364694]
[1766542856501,10.43767296,122.76,122.75,2.29364694]
[1766542856699,18.43767296,122.76,122.75,2.29364694]
[1766542857902,18.43767296,122.76,122.74,2.97364694]
[1766542858600,0.71,122.75,122.72,11.12202806]
[1766542858935,0.71,122.73,122.7,0.68]
[1766542859213,0.71,122.73,122.71,2.29364694]
[1766542859708,0.71,122.75,122.71,2.97364694]
[1766542859918,43.756765,122.76,122.73,2.97364694]
[1766542860224,0.71,122.75,122.73,2.29364694]
[1766542860383,0.71,122.75,122.72,2.97364694]
[1766542860800,34.89851522,122.76,122.74,2.29364694]
[1766542861002,8.85554827,122.77,122.74,2.97364694]
[1766542861308,0.71,122.76,122.74,2.29364694]
[1766542861519,19.29322123,122.77,122.74,2.29364694]
[1766542861722,19.29322123,122.77,122.74,2.97364694]
[1766542861941,8.0,122.76,122.74,2.29364694]
[1766542862813,0.71,122.75,122.73,2.29364694]
[1766542863014,0.71,122.75,122.72,17.85364694]
[1766542863220,8.71,122.76,122.73,0.68]
[1766542863428,8.71,122.76,122.74,2.29364694]
[1766542863645,16.85601839,122.76,122.73,2.97364694]
[1766542863930,8.85601839,122.76,122.73,2.97364694]
[1766542864332,0.71,122.75,122.71,0.68]
[1766542864506,0.71,122.75,122.72,2.29364694]
[1766542864916,0.71,122.74,122.72,2.29364694]
[1766542865315,0.71,122.74,122.71,17.85364694]
[1766542865542,0.71,122.73,122.67,0.2]
[1766542865828,0.71,122.73,122.69,2.29364694]
[1766542866236,0.71,122.73,122.7,2.29364694]
[1766542866606,0.71,122.73,122.71,2.29364694]
[1766542866807,11.14767296,122.74,122.71,2.97364694]
[1766542867423,11.14767296,122.74,122.71,2.29364694]
[1766542867424,0.69,122.73,122.71,2.29364694]
[1766542867623,0.69,122.73,122.7,0.7]
[1766542867825,0.69,122.73,122.7,2.29364694]
[1766542868537,0.69,122.73,122.7,2.99364694]
[1766542869628,0.69,122.73,122.71,2.29364694]
[1766542870216,0.69,122.73,122.72,2.29364694]
[1766542870423,10.43767296,122.74,122.72,2.29364694]
[1766542870619,10.43767296,122.74,122.73,2.29364694]
[1766542870821,17.17364694,122.77,122.73,2.99364694]
[1766542870822,10.43767296,122.75,122.73,2.99364694]
[1766542872423,10.43767296,122.75,122.73,2.29364694]
[1766542877059,19.2732699,122.77,122.73,2.99364694]
[1766542877645,8.0,122.76,122.73,2.99364694]
[1766542878234,16.83604046,122.76,122.73,2.99364694]
[1766542881847,0.69,122.75,122.71,8.14899352]
[1766542882138,0.69,122.75,122.72,2.29364694]
[1766542882321,0.69,122.75,122.71,8.14899352]
[1766542882322,0.69,122.75,122.71,2.29364694]
[1766542882524,0.69,122.75,122.71,2.99364694]
[1766542883416,8.83687578,122.75,122.71,2.99364694]
[1766542883817,0.69,122.74,122.71,2.99364694]
[1766542885145,8.0,122.76,122.74,0.7]
[1766542885336,8.0,122.76,122.75,2.99364694]
[1766542885649,8.83406055,122.79,122.76,0.7]
[1766542885821,19.27173351,122.79,122.76,2.99364694]
[1766542887526,19.27173351,122.79,122.75,2.99364694]
[1766542887723,0.69,122.77,122.74,2.29364694]
[1766542888028,8.0,122.78,122.76,2.16863477]
[1766542888227,8.0,122.78,122.77,1.46863477]
[1766542888755,19.27114285,122.8,122.77,1.46863477]
[1766542889363,19.27114285,122.8,122.77,2.16863477]
[1766542889655,10.43767296,122.8,122.77,1.46863477]
[1766542889948,8.83294101,122.81,122.78,2.16863477]
[1766542890121,19.27061397,122.81,122.78,2.16863477]
[1766542891043,19.27061397,122.81,122.77,0.7]
[1766542891370,19.27061397,122.81,122.78,1.46863477]
[1766542891575,0.69,122.8,122.77,2.16863477]
[1766542892659,40.40589722,122.81,122.77,1.46863477]
[1766542892660,8.69,122.79,122.77,1.46863477]
[1766542892873,8.69,122.79,122.76,2.16863477]
[1766542893047,8.69,122.79,122.76,0.7]
[1766542893563,16.83398991,122.79,122.76,2.16863477]
[1766542894770,16.83398991,122.79,122.76,1.46863477]
[1766542894771,0.71,122.78,122.76,1.46863477]
[1766542894958,0.71,122.78,122.75,0.65]
[1766542895155,0.71,122.78,122.75,2.11863477]
[1766542896388,0.71,122.81,122.78,0.65]
[1766542896679,0.71,122.81,122.78,2.11863477]
[1766542896881,10.43767296,122.8,122.78,2.11863477]
[1766542897458,11.12767296,122.8,122.78,1.46863477]
[1766542897848,10.43767296,122.8,122.78,1.46863477]
[1766542898260,11.12767296,122.8,122.77,2.13863477]
[1766542901080,10.43767296,122.8,122.78,1.46863477]
[1766542901474,10.43767296,122.8,122.78,2.13863477]
[1766542901674,10.43767296,122.8,122.78,0.67]
[1766542901885,10.43767296,122.8,122.78,2.13863477]
[1766542906060,10.43767296,122.8,122.78,0.67]
[1766542910164,10.00118201,122.8,122.78,0.67]
[1766542910765,10.00118201,122.8,122.78,2.13863477]
[1766542913490,10.43767296,122.8,122.79,2.13863477]
[1766542913785,0.69,122.82,122.8,0.67]
[1766542913987,0.69,122.82,122.8,2.13863477]
[1766542914867,0.69,122.82,122.8,0.67]
[1766542915064,8.83201348,122.82,122.8,0.67]
[1766542916095,8.83201348,122.82,122.77,8.14528765]
[1766542916270,0.69,122.81,122.78,2.13863477]
[1766542917285,19.36924133,122.83,122.79,2.13863477]
[1766542917986,0.79,122.83,122.8,2.13863477]
[1766542918193,10.43767296,122.82,122.81,2.13863477]
[1766542918696,0.1,122.83,122.81,2.13863477]
[1766542918891,10.53767296,122.83,122.82,1.46863477]
[1766542921889,10.53767296,122.83,122.81,2.13863477]
[1766542925101,0.1,122.83,122.81,2.13863477]
[1766542929415,0.1,122.83,122.81,0.67]
[1766542929712,0.1,122.83,122.82,1.46863477]
[1766542929890,0.1,122.83,122.81,0.67]
[1766542930098,0.1,122.83,122.81,2.13863477]
[1766542933306,19.24793903,122.85,122.82,2.15863477]
[1766542934124,18.57793903,122.85,122.82,2.15863477]
[1766542934298,0.67,122.84,122.82,2.15863477]
[1766542934908,0.67,122.84,122.81,0.69]
[1766542935116,0.67,122.84,122.81,2.15863477]
[1766542947235,10.43767296,122.85,122.82,1.46863477]
[1766542947528,1.46863477,122.86,122.81,8.83244562]
[1766542947704,0.67,122.85,122.81,2.15863477]
[1766542948522,0.67,122.85,122.82,2.15863477]
[1766542948719,0.67,122.85,122.82,0.69]
[1766542950329,0.67,122.85,122.82,2.98244354]
[1766542953132,19.34654041,122.87,122.84,0.69]
[1766542953424,0.1,122.87,122.85,2.98244354]
[1766542954827,0.68,122.86,122.84,2.29244354]
[1766542955033,0.68,122.86,122.84,0.71]
[1766542956222,0.68,122.84,122.81,0.71]
[1766542956614,0.68,122.84,122.81,3.00244354]
[1766542957627,0.68,122.84,122.81,11.14504851]
[1766542957808,0.68,122.84,122.82,0.72]
[1766542958427,0.68,122.84,122.82,3.01244354]
[1766542958625,11.13767296,122.85,122.82,3.01244354]
[1766542959334,11.13767296,122.85,122.82,0.72]
[1766542960915,11.13767296,122.85,122.82,2.29244354]
[1766542961117,10.43767296,122.85,122.83,3.01244354]
[1766542961440,8.23870642,122.87,122.84,0.72]
[1766542961739,8.93870642,122.87,122.84,0.72]
[1766542961916,0.8,122.87,122.84,0.72]
[1766542962438,0.8,122.87,122.84,3.01244354]
[1766542963540,0.1,122.87,122.85,0.72]
[1766542964538,8.93868721,122.87,122.84,2.29244354]
[1766542964741,8.93868721,122.87,122.84,3.01244354]
[1766542964931,8.93868721,122.87,122.84,0.72]
[1766542968444,0.7,122.86,122.83,17.15244354]
[1766542968657,8.23868721,122.87,122.84,0.72]
[1766542968852,0.7,122.86,122.84,0.72]
[1766542969155,0.7,122.86,122.83,17.87244354]
[1766542971068,0.7,122.86,122.83,3.01244354]
[1766542971755,0.1,122.87,122.84,2.29244354]
[1766542972049,0.1,122.87,122.85,0.72]
[1766542973348,0.1,122.87,122.85,3.01244354]
[1766542973953,0.1,122.87,122.85,0.72]
[1766542978152,0.1,122.87,122.85,11.15228211]
[1766542978358,11.23767296,122.87,122.84,17.87244354]
[1766542978655,0.1,122.87,122.86,3.01244354]
[1766542980240,0.1,122.88,122.86,2.29244354]
[1766542980450,0.1,122.88,122.87,3.01244354]
[1766542981450,0.1,122.88,122.87,2.29244354]
[1766542981844,0.1,122.88,122.84,23.00043685]
[1766542982054,0.8,122.88,122.85,3.01244354]
[1766542982257,2.39244354,122.88,122.84,15.58]
[1766542982441,0.7,122.87,122.83,17.87244354]
[1766542982843,0.7,122.87,122.83,15.58]
[1766542983037,2.29244354,122.87,122.83,17.87244354]
[1766542983244,0.7,122.86,122.83,17.87244354]
[1766542983457,0.7,122.86,122.84,0.72]
[1766542984264,0.7,122.87,122.84,3.01244354]
[1766542991968,0.1,122.88,122.85,2.97244354]
[1766542992169,0.8,122.88,122.86,0.68]
[1766542992672,0.7,122.87,122.84,2.97244354]
[1766542994282,0.7,122.86,122.83,17.83244354]
[1766542994853,0.7,122.86,122.84,0.68]
[1766542998368,0.7,122.87,122.84,2.97244354]
[1766542998772,0.7,122.87,122.85,0.68]
[1766542999383,0.7,122.87,122.85,2.97244354]
[1766542999579,0.8,122.88,122.86,0.68]
[1766542999781,0.1,122.88,122.86,0.68]
[1766543002578,0.8,122.88,122.86,0.68]
[1766543003780,0.8,122.88,122.84,8.14052279]
[1766543003965,0.7,122.87,122.84,0.68]
[1766543004169,0.7,122.87,122.84,2.97244354]
[1766543010090,0.7,122.87,122.85,0.68]
[1766543011593,0.7,122.85,122.8,21.02149166]
[1766543011796,0.7,122.83,122.8,0.68]
[1766543012101,2.16780545,122.83,122.8,0.68]
[1766543014486,0.7,122.83,122.8,0.68]
[1766543015006,0.7,122.83,122.8,2.14780545]
[1766543017298,0.7,122.83,122.8,1.46780545]
[1766543017503,8.82029539,122.85,122.82,0.69]
[1766543017912,0.68,122.84,122.82,0.69]
[1766543018081,8.82029539,122.85,122.82,0.69]
[1766543026606,0.68,122.84,122.82,0.69]
[1766543026799,1.46780545,122.84,122.8,2.15780545]
[1766543027111,0.68,122.83,122.8,2.15780545]
[1766543027897,0.68,122.83,122.8,0.69]
[1766543038921,8.82136699,122.83,122.8,0.69]
[1766543039302,0.68,122.82,122.8,0.69]
[1766543041210,9.60874993,122.84,122.8,0.69]
[1766543041404,0.68,122.83,122.8,0.69]
[1766543043432,0.68,122.83,122.8,2.15780545]
[1766543043617,0.68,122.83,122.81,0.69]
[1766543044018,8.82026394,122.85,122.81,2.15780545]
[1766543044331,0.68,122.85,122.82,1.46780545]
[1766543044525,0.68,122.85,122.83,0.69]
[1766543044730,0.68,122.85,122.82,0.69]
[1766543048230,20.725082,122.86,122.82,0.69]
[1766543048831,0.68,122.85,122.82,0.69]
[1766543051608,0.59858998,122.85,122.82,0.69]
[1766543053036,0.59858998,122.85,122.83,0.7]
[1766543061138,0.68,122.84,122.81,15.56]
[1766543061318,0.68,122.84,122.81,0.7]
[1766543063446,0.68,122.84,122.82,0.7]
[1766543063939,0.68,122.84,122.81,0.7]
[1766543063940,8.82103228,122.84,122.81,0.7]
[1766543064245,0.68,122.82,122.8,15.56]
[1766543065026,0.68,122.83,122.8,15.56]
[1766543066851,1.46780545,122.81,122.76,16.32780545]
[1766543067025,0.68,122.79,122.76,0.7]
[1766543067225,0.68,122.79,122.76,1.46780545]
[1766543067451,0.68,122.8,122.77,0.7]
[1766543067625,0.68,122.8,122.77,2.16780545]
[1766543067821,0.68,122.8,122.77,8.14527674]
[1766543068024,40.40048562,122.83,122.78,1.46780545]
[1766543068223,0.68,122.82,122.79,0.7]
[1766543068745,0.68,122.82,122.78,2.16780545]
[1766543069346,0.68,122.8,122.77,0.7]
[1766543071338,0.68,122.8,122.77,2.16780545]
[1766543072149,0.68,122.8,122.77,2.99418413]
[1766543073528,0.68,122.8,122.77,0.7]
[1766543073730,0.68,122.8,122.77,2.99418413]
[1766543073937,0.68,122.8,122.77,0.7]
[1766543074129,0.68,122.8,122.77,2.99418413]
[1766543075050,0.68,122.8,122.77,0.7]
[1766543076056,0.68,122.8,122.76,10.44015785]
[1766543076057,0.72,122.79,122.76,3.00418413]
[1766543076232,2.29418413,122.79,122.75,17.86418413]
[1766543076436,0.72,122.78,122.75,17.86418413]
[1766543077748,0.72,122.78,122.75,26.01070511]
[1766543079644,0.72,122.78,122.75,25.30070511]
[1766543079833,10.4377738,122.8,122.76,0.66]
[1766543080033,0.68,122.79,122.76,0.66]
[1766543080255,0.68,122.78,122.75,17.81418413]
[1766543080846,0.68,122.78,122.76,0.66]
[1766543082558,0.68,122.78,122.75,2.95418413]
[1766543082750,0.68,122.78,122.75,0.66]
[1766543083353,0.68,122.78,122.73,0.66]
[1766543083354,0.68,122.77,122.73,0.66]
[1766543083537,0.68,122.76,122.73,0.66]
[1766543083733,0.68,122.76,122.72,8.14856354]
[1766543083734,0.68,122.74,122.7,0.86]
[1766543084061,10.43767296,122.74,122.7,0.2]
[1766543084360,0.68,122.72,122.7,0.2]
[1766543084664,10.43767296,122.73,122.71,2.95418413]
[1766543084961,11.11767296,122.76,122.73,0.66]
[1766543085138,10.43767296,122.76,122.75,0.66]
[1766543085341,10.43767296,122.76,122.74,2.95418413]
[1766543085540,10.43767296,122.76,122.74,0.66]
[1766543085751,10.43767296,122.76,122.73,2.95418413]
[1766543086138,8.82478516,122.78,122.75,0.66]
[1766543086473,0.68,122.77,122.74,2.95418413]
[1766543088071,0.68,122.77,122.74,0.66]
[1766543088273,0.68,122.77,122.74,2.95418413]
[1766543088476,11.11767296,122.78,122.75,0.66]
[1766543088652,10.43767296,122.78,122.75,2.29418413]
[1766543088853,11.11767296,122.78,122.75,2.95418413]
[1766543090057,0.68,122.76,122.73,2.29418413]
[1766543090257,0.68,122.76,122.73,2.95418413]
[1766543090849,0.68,122.77,122.73,2.95418413]
[1766543092051,0.68,122.75,122.72,0.66]
[1766543092269,0.68,122.75,122.72,2.95418413]
[1766543095671,8.82531237,122.77,122.74,0.66]
[1766543095975,0.68,122.76,122.73,2.95418413]
[1766543096171,0.68,122.76,122.72,0.66]
[1766543096354,0.68,122.75,122.72,2.29418413]
[1766543096550,0.68,122.75,122.7,23.88976187]
[1766543096551,0.68,122.73,122.7,17.37418413]
[1766543096862,0.68,122.73,122.7,15.08]
[1766543097472,0.68,122.73,122.7,0.2]
[1766543097668,8.14824602,122.73,122.7,0.2]
[1766543097869,0.68,122.72,122.7,0.2]
[1766543098952,0.68,122.73,122.7,3.15418413]
[1766543099460,0.68,122.73,122.7,2.49418413]
[1766543099665,0.68,122.73,122.7,3.15418413]
[1766543100167,0.68,122.73,122.7,0.86]
[1766543100361,0.68,122.73,122.7,3.15418413]
[1766543100546,2.29418413,122.73,122.7,0.2]
[1766543100754,0.68,122.71,122.68,15.08]
[1766543100955,0.68,122.71,122.68,18.03418413]
[1766543101575,0.68,122.71,122.68,3.15418413]
[1766543103683,0.68,122.71,122.68,0.2]
[1766543104159,0.68,122.71,122.68,2.49418413]
[1766543104762,11.12240549,122.73,122.69,0.66]
[1766543105065,0.68,122.73,122.7,2.95418413]
[1766543105986,0.68,122.72,122.69,2.95418413]
[1766543107576,0.72,122.7,122.68,0.2]
[1766543110762,8.14998612,122.7,122.68,0.2]
[1766543110984,0.72,122.69,122.68,0.2]
[1766543116808,8.14953399,122.71,122.68,0.2]
[1766543117016,0.72,122.7,122.68,0.2]
[1766543118016,0.72,122.7,122.68,2.49418413]
[1766543118297,11.15767296,122.71,122.68,3.17418413]
[1766543118482,0.72,122.75,122.71,0.68]
[1766543118676,0.72,122.75,122.72,2.97418413]
[1766543119688,0.72,122.75,122.72,2.29418413]
[1766543120295,0.72,122.77,122.73,2.97418413]
[1766543121176,0.72,122.77,122.74,2.29418413]
[1766543121906,0.72,122.77,122.75,2.29418413]
[1766543122607,10.43767296,122.78,122.74,2.29418413]
[1766543122608,0.72,122.78,122.74,2.29418413]
[1766543122812,0.72,122.78,122.73,8.82795482]
[1766543123303,0.72,122.77,122.73,0.68]
[1766543123599,3.01418413,122.77,122.73,0.68]
[1766543123799,0.72,122.75,122.72,14.88]
[1766543124004,0.72,122.75,122.72,17.17418413]
[1766543124412,0.72,122.75,122.71,8.82911879]
[1766543124590,0.72,122.75,122.72,0.68]
[1766543125014,0.72,122.75,122.72,2.97418413]
[1766543125304,0.72,122.75,122.72,2.29418413]
[1766543127419,0.72,122.75,122.71,11.12330292]
[1766543127711,0.72,122.74,122.7,2.29418413]
[1766543128013,0.72,122.74,122.7,2.97418413]
[1766543128318,0.72,122.74,122.71,2.29418413]
[1766543128814,0.72,122.74,122.7,2.97418413]
[1766543129412,0.72,122.73,122.69,2.29418413]
[1766543130613,8.14806708,122.73,122.69,2.29418413]
[1766543130918,0.72,122.72,122.69,2.29418413]
[1766543131092,0.72,122.72,122.69,2.97418413]
[1766543134018,0.72,122.72,122.69,2.15003739]
[1766543135209,0.72,122.72,122.7,1.47003739]
[1766543135599,0.65,122.75,122.71,2.12003739]
[1766543135801,20.36423937,122.77,122.71,2.12003739]
[1766543135802,11.08767296,122.74,122.72,1.47003739]
[1766543136009,11.08767296,122.74,122.71,0.65]
[1766543136322,11.08767296,122.74,122.72,1.47003739]
[1766543136720,0.65,122.75,122.72,1.47003739]
[1766543136924,11.08767296,122.75,122.72,0.65]
[1766543137099,11.08767296,122.75,122.72,2.12003739]
[1766543137303,0.65,122.75,122.72,2.12003739]
[1766543142196,0.65,122.75,122.72,0.65]
[1766543142401,0.65,122.75,122.71,2.13003739]
[1766543143726,0.65,122.75,122.71,0.66]
[1766543144022,0.7,122.74,122.71,0.66]
[1766543144224,0.7,122.74,122.71,1.47003739]
[1766543144425,0.7,122.74,122.7,10.27941323]
[1766543145423,0.7,122.74,122.7,8.80937584]
[1766543145825,8.84601566,122.76,122.72,2.13003739]
[1766543146831,8.84601566,122.76,122.72,1.47003739]
[1766543147035,8.84601566,122.76,122.73,0.66]
[1766543148329,0.7,122.76,122.73,2.13003739]